fUST/lending_fUST_20250603
["ID","MTS","AMOUNT","RATE_DAILY","PERIOD"]
[363848475,1748898643496,-348.709724,0.00017798,2]
[363848477,1748898643506,-440.0,0.00017798,2]
[363848479,1748898643515,-440.0,0.00017798,2]
[363848481,1748898643526,-411.25266767,0.00017798,2]
[363848483,1748898643536,-440.0,0.00017798,2]
[363848485,1748898643546,-440.0,0.00017798,2]
[363848487,1748898643556,-151.0,0.00017798,2]
[363848489,1748898643566,-151.0,0.00017798,2]
[363848491,1748898643575,-151.0,0.00017798,2]
[363848493,1748898643585,-151.0,0.00017798,2]
[363848495,1748898643597,-711.87223538,0.00017866,2]
[363848497,1748898643608,-500.0,0.00017868,2]
[363848499,1748898643618,-500.0,0.00017959,2]
[363848502,1748898643628,-151.0,0.00018,2]
[363848504,1748898643638,-500.0,0.00018017,2]
[363848506,1748898643647,-2533.93,0.00018052,2]
[363848508,1748898643657,-440.0,0.00018069,2]
[363848510,1748898643667,-440.0,0.00018069,2]
[363848512,1748898643681,-1252.42,0.00018069,2]
[363848514,1748898643692,-440.0,0.00018069,2]
[363848515,1748898643702,-440.0,0.00018069,2]
[363848519,1748898643712,-549.81917017,0.0001807,2]
[363848521,1748898643721,-440.0,0.0001807,2]
[363848523,1748898643732,-578.32829244,0.0001807,2]
[363848525,1748898643742,-500.0,0.0001807,2]
[363848527,1748898643752,-440.0,0.0001807,2]
[363848529,1748898643762,-1041.47,0.0001807,2]
[363848531,1748898643772,-440.0,0.0001807,2]
[363848533,1748898643781,-1168.92,0.0001807,2]
[363848535,1748898643791,-440.0,0.0001807,2]
[363848537,1748898643801,-440.0,0.0001807,2]
[363848539,1748898643811,-440.0,0.0001807,2]
[363848541,1748898643821,-151.0,0.0001807,2]
[363848543,1748898643831,-1243.84,0.0001807,2]
[363848545,1748898643841,-440.0,0.0001807,2]
[363848547,1748898643851,-440.0,0.0001807,2]
[363848549,1748898643861,-2429.72,0.0001807,2]
[363848551,1748898643871,-440.0,0.0001807,2]
[363848553,1748898643882,-380.0,0.0001807,2]
[363848555,1748898643892,-2446.38,0.0001807,2]
[363848557,1748898643901,-2932.61,0.0001807,2]
[363848559,1748898643912,-440.0,0.0001807,2]
[363848562,1748898643922,-759.05,0.0001807,2]
[363848563,1748898643931,-204.401088,0.0001807,2]
[363848566,1748898643941,-2075.53,0.0001807,2]
[363848568,1748898643950,-204.401088,0.0001807,2]
[363848570,1748898643960,-440.0,0.0001807,2]
[363848572,1748898643971,-440.0,0.0001807,2]
[363848574,1748898643982,-440.0,0.0001807,2]
[363848576,1748898643993,-343.90499062,0.0001807,2]
[363848578,1748898644004,-440.0,0.0001807,2]
[363848580,1748898644014,-440.0,0.0001807,2]
[363848582,1748898644023,-440.0,0.0001807,2]
[363848584,1748898644033,-1209.51,0.0001807,2]
[363848586,1748898644043,-440.0,0.0001807,2]
[363848588,1748898644052,-440.0,0.0001807,2]
[363848590,1748898644062,-440.0,0.00018071,2]
[363848592,1748898644073,-822.63,0.00018071,2]
[363848594,1748898644083,-440.0,0.00018071,2]
[363848596,1748898644095,-440.0,0.00018071,2]
[363848598,1748898644107,-440.0,0.00018071,2]
[363848600,1748898644118,-440.0,0.00018071,2]
[363848602,1748898644128,-440.0,0.00018071,2]
[363848604,1748898644138,-440.0,0.00018071,2]
[363848606,1748898644148,-380.0,0.00018071,2]
[363848608,1748898644158,-440.0,0.00018071,2]
[363848610,1748898644168,-500.0,0.00018071,2]
[363848612,1748898644179,-151.0,0.00018071,2]
[363848614,1748898644189,-440.0,0.00018071,2]
[363848616,1748898644199,-555.86,0.00018071,2]
[363848618,1748898644209,-151.0,0.00018071,2]
[363848620,1748898644219,-440.0,0.00018071,2]
[363848623,1748898644231,-440.0,0.00018071,2]
[363848625,1748898644242,-1447.71,0.00018071,2]
[363848627,1748898644252,-151.0,0.00018071,2]
[363848629,1748898644262,-152.70797,0.00018071,2]
[363848631,1748898644272,-151.0,0.00018071,2]
[363848633,1748898644282,-3248.01,0.00018071,2]
[363848635,1748898644292,-769.84,0.00018071,2]
[363848637,1748898644302,-152.528378,0.00018071,2]
[363848639,1748898644312,-709.82,0.00018071,2]
[363848641,1748898644323,-152.528378,0.00018071,2]
[363848643,1748898644333,-571.83,0.00018071,2]
[363848645,1748898644343,-3691.36,0.00018071,2]
[363848647,1748898644352,-151.0,0.00018071,2]
[363848649,1748898644362,-616.2,0.00018071,2]
[363848651,1748898644371,-440.0,0.00018071,2]
[363848653,1748898644381,-1320.38,0.00018071,2]
[363848655,1748898644390,-1361.05,0.00018071,2]
[363848657,1748898644400,-440.0,0.00018071,2]
[363848659,1748898644410,-274.223042,0.00018071,2]
[363848661,1748898644419,-274.223042,0.00018071,2]
[363848663,1748898644430,-301.41,0.00018071,2]
[363848665,1748898644440,-440.0,0.00018071,2]
[363848667,1748898644450,-1388.18,0.00018071,2]
[363848669,1748898644459,-440.0,0.00018071,2]
[363848671,1748898644469,-587.08,0.00018071,2]
[363848673,1748898644482,-157.752796,0.00018071,2]
[363848675,1748898644492,-500.0,0.00018071,2]
[363848677,1748898644502,-500.0,0.00018071,2]
[363848679,1748898644512,-500.0,0.00018071,2]
[363848681,1748898644523,-500.0,0.00018071,2]
[363848683,1748898644533,-500.0,0.00018071,2]
[363848685,1748898644543,-380.0,0.00018072,2]
[363848687,1748898644553,-380.0,0.00018072,2]
[363848689,1748898644563,-440.0,0.00018072,2]
[363848691,1748898644573,-380.0,0.00018072,2]
[363848693,1748898644583,-500.0,0.00018072,2]
[363848695,1748898644596,-440.0,0.00018072,2]
[363848697,1748898644607,-380.0,0.00018072,2]
[363848699,1748898644616,-440.0,0.00018072,2]
[363848701,1748898644628,-380.0,0.00018072,2]
[363848703,1748898644639,-842.5625,0.00018095,2]
[363848705,1748898644648,-212.83419937,0.00018095,2]
[363848708,1748898644659,-12668.79298183,0.00018095,2]
[363848710,1748898644668,-423.56953423,0.00018095,2]
[363848711,1748898644679,-160.0,0.00018095,2]
[363848714,1748898644690,-229.39799938,0.00018095,2]
[363848716,1748898644700,-151.0,0.000181,2]
[363848718,1748898644710,-711.87223538,0.00018107,2]
[363848720,1748898644719,-297.29849381,0.0001813,2]
[363848722,1748898644731,-500.0,0.0001813,2]
[363848724,1748898644740,-420.0,0.00018242,2]
[363848726,1748898644750,-287.0,0.00018244,2]
[363848728,1748898644760,-2735.43196046,0.00018273,2]
[363848730,1748898644770,-440.0,0.00018343,2]
[363848732,1748898644780,-440.0,0.00018343,2]
[363848734,1748898644790,-1252.42,0.00018343,2]
[363848736,1748898644800,-305.59118301,0.00018343,2]
[363848738,1748898644810,-440.0,0.00018343,2]
[363848740,1748898644819,-390.0,0.00018344,2]
[363848742,1748898644829,-500.0,0.00018344,2]
[363848744,1748898644838,-424.38,0.00018344,2]
[363848746,1748898644848,-440.0,0.00018344,2]
[363848748,1748898644858,-1041.47,0.00018344,2]
[363848750,1748898644867,-440.0,0.00018344,2]
[363848752,1748898644877,-1168.92,0.00018344,2]
[363848754,1748898644886,-440.0,0.00018344,2]
[363848756,1748898644896,-440.0,0.00018344,2]
[363848758,1748898644906,-440.0,0.00018344,2]
[363848760,1748898644915,-1243.84,0.00018344,2]
[363848762,1748898644925,-440.0,0.00018344,2]
[363848764,1748898644934,-457.26,0.00018344,2]
[363848766,1748898644944,-2429.72,0.00018344,2]
[363848768,1748898644953,-440.0,0.00018344,2]
[363848770,1748898644964,-2446.38,0.00018344,2]
[363848772,1748898644974,-2932.61,0.00018344,2]
[363848774,1748898644985,-440.0,0.00018344,2]
[363848776,1748898644995,-759.05,0.00018344,2]
[363848779,1748898645005,-2075.53,0.00018344,2]
[363848781,1748898645015,-440.0,0.00018344,2]
[363848783,1748898645025,-440.0,0.00018344,2]
[363848785,1748898645036,-440.0,0.00018344,2]
[363848786,1748898645045,-440.0,0.00018344,2]
[363848787,1748898645055,-440.0,0.00018344,2]
[363848788,1748898645064,-440.0,0.00018344,2]
[363848789,1748898645074,-1209.51,0.00018344,2]
[363848790,1748898645083,-440.0,0.00018344,2]
[363848791,1748898645093,-440.0,0.00018344,2]
[363848792,1748898645102,-360.0,0.00018345,2]
[363848793,1748898645112,-822.63,0.00018345,2]
[363848794,1748898645121,-440.0,0.00018345,2]
[363848795,1748898645130,-370.0,0.00018345,2]
[363848796,1748898645140,-370.0,0.00018345,2]
[363848797,1748898645149,-152.303192,0.00018345,2]
[363848799,1748898645159,-440.0,0.00018345,2]
[363848800,1748898645168,-151.0,0.00018345,2]
[363848802,1748898645178,-370.0,0.00018345,2]
[363848804,1748898645188,-151.0,0.00018345,2]
[363848807,1748898645198,-440.0,0.00018345,2]
[363848809,1748898645208,-151.0,0.00018345,2]
[363848811,1748898645218,-151.0,0.00018345,2]
[363848813,1748898645229,-440.0,0.00018345,2]
[363848815,1748898645239,-151.0,0.00018345,2]
[363848817,1748898645250,-481.431687,0.00018345,2]
[363848819,1748898645260,-481.431687,0.00018345,2]
[363848821,1748898645270,-673.475798,0.00018345,2]
[363848823,1748898645279,-673.475798,0.00018345,2]
[363848825,1748898645289,-440.0,0.00018345,2]
[363848827,1748898645300,-203.32,0.00018345,2]
[363848829,1748898645310,-440.0,0.00018345,2]
[363848831,1748898645320,-1447.71,0.00018345,2]
[363848833,1748898645330,-3248.01,0.00018345,2]
[363848835,1748898645341,-769.84,0.00018345,2]
[363848837,1748898645351,-709.82,0.00018345,2]
[363848839,1748898645361,-571.83,0.00018345,2]
[363848841,1748898645371,-3691.36,0.00018345,2]
[363848843,1748898645381,-616.2,0.00018345,2]
[363848846,1748898645392,-371.86493233,0.00018345,2]
[363848848,1748898645402,-1320.38,0.00018345,2]
[363848850,1748898645412,-1361.05,0.00018345,2]
[363848852,1748898645421,-440.0,0.00018345,2]
[363848854,1748898645430,-151.0,0.00018345,2]
[363848856,1748898645442,-440.0,0.00018345,2]
[363848858,1748898645452,-1388.18,0.00018345,2]
[363848860,1748898645462,-440.0,0.00018345,2]
[363848862,1748898645471,-587.08,0.00018345,2]
[363848864,1748898645482,-1054.348671,0.00018345,2]
[363848866,1748898645492,-1054.348671,0.00018345,2]
[363848868,1748898645502,-440.0,0.00018346,2]
[363848870,1748898645513,-440.0,0.00018346,2]
[363848872,1748898645522,-440.0,0.00018346,2]
[363848874,1748898645532,-160.013418,0.00018347,2]
[363848877,1748898645544,-160.013418,0.00018347,2]
[363848879,1748898645553,-711.87223538,0.00018348,2]
[363848881,1748898645564,-151.0,0.00018568,2]
[363848883,1748898645574,-151.0,0.00018568,2]
[363848885,1748898645583,-151.0,0.00018568,2]
[363848887,1748898645593,-151.0,0.00018568,2]
[363848889,1748898645606,-711.87223538,0.0001859,2]
[363848891,1748898645615,-440.0,0.00018617,2]
[363848893,1748898645625,-440.0,0.00018617,2]
[363848895,1748898645634,-1252.42,0.00018617,2]
[363848897,1748898645645,-440.0,0.00018617,2]
[363848899,1748898645655,-518.5,0.00018618,2]
[363848901,1748898645665,-1041.47,0.00018618,2]
[363848903,1748898645674,-440.0,0.00018618,2]
[363848905,1748898645685,-1168.92,0.00018618,2]
[363848907,1748898645695,-440.0,0.00018618,2]
[363848909,1748898645705,-440.0,0.00018618,2]
[363848911,1748898645716,-440.0,0.00018618,2]
[363848914,1748898645725,-1243.84,0.00018618,2]
[363848916,1748898645737,-440.0,0.00018618,2]
[363848918,1748898645747,-2429.72,0.00018618,2]
[363848920,1748898645758,-414.09,0.00018618,2]
[363848934,1748898645876,-2446.38,0.00018618,2]
[363848936,1748898645886,-2932.61,0.00018618,2]
[363848938,1748898645897,-440.0,0.00018618,2]
[363848940,1748898645907,-759.05,0.00018618,2]
[363848942,1748898645917,-204.401088,0.00018618,2]
[363848944,1748898645926,-2075.53,0.00018618,2]
[363848946,1748898645936,-204.401088,0.00018618,2]
[363848948,1748898645946,-440.0,0.00018618,2]
[363848950,1748898645955,-440.0,0.00018618,2]
[363848952,1748898645965,-440.0,0.00018618,2]
[363848954,1748898645974,-440.0,0.00018618,2]
[363848956,1748898645986,-164.64,0.00018618,2]
[363848958,1748898645996,-440.0,0.00018618,2]
[363848960,1748898646005,-1209.51,0.00018618,2]
[363848962,1748898646015,-440.0,0.00018618,2]
[363848965,1748898646025,-440.0,0.00018618,2]
[363848967,1748898646035,-151.0,0.00018619,2]
[363848969,1748898646045,-151.0,0.00018619,2]
[363848971,1748898646054,-822.63,0.00018619,2]
[363848973,1748898646064,-440.0,0.00018619,2]
[363848976,1748898646073,-151.0,0.00018619,2]
[363848979,1748898646083,-440.0,0.00018619,2]
[363848982,1748898646092,-440.0,0.00018619,2]
[363848985,1748898646102,-1326.837435,0.00018619,2]
[363848988,1748898646111,-440.0,0.00018619,2]
[363848990,1748898646121,-1326.837435,0.00018619,2]
[363848992,1748898646130,-396.594112,0.00018619,2]
[363848994,1748898646140,-396.594112,0.00018619,2]
[363848996,1748898646150,-440.0,0.00018619,2]
[363848998,1748898646160,-151.0,0.00018619,2]
[363849000,1748898646169,-440.0,0.00018619,2]
[363849002,1748898646179,-1447.71,0.00018619,2]
[363849004,1748898646189,-151.927434,0.00018619,2]
[363849006,1748898646198,-151.0,0.00018619,2]
[363849008,1748898646208,-3248.01,0.00018619,2]
[363849010,1748898646218,-769.84,0.00018619,2]
[363849012,1748898646227,-152.528378,0.00018619,2]
[363849014,1748898646237,-709.82,0.00018619,2]
[363849016,1748898646247,-152.528378,0.00018619,2]
[363849018,1748898646258,-571.83,0.00018619,2]
[363849020,1748898646267,-3691.36,0.00018619,2]
[363849022,1748898646277,-151.0,0.00018619,2]
[363849024,1748898646286,-616.2,0.00018619,2]
[363849026,1748898646296,-1320.38,0.00018619,2]
[363849028,1748898646306,-1361.05,0.00018619,2]
[363849030,1748898646315,-440.0,0.00018619,2]
[363849032,1748898646325,-274.223042,0.00018619,2]
[363849034,1748898646334,-274.223042,0.00018619,2]
[363849036,1748898646344,-440.0,0.00018619,2]
[363849038,1748898646354,-1388.18,0.00018619,2]
[363849040,1748898646364,-440.0,0.00018619,2]
[363849042,1748898646373,-587.08,0.00018619,2]
[363849044,1748898646382,-157.752796,0.00018619,2]
[363849046,1748898646392,-440.0,0.0001862,2]
[363849048,1748898646401,-150.32,0.0001862,2]
[363849050,1748898646411,-440.0,0.0001862,2]
[363849052,1748898646420,-151.0,0.000187,2]
[363849054,1748898646431,-151.0,0.000188,2]
[363849056,1748898646441,-711.87223538,0.00018831,2]
[363849058,1748898646451,-440.0,0.00018891,2]
[363849060,1748898646459,-440.0,0.00018891,2]
[363849062,1748898646469,-1252.42,0.00018891,2]
[363849064,1748898646480,-440.0,0.00018891,2]
[363849066,1748898646490,-1041.47,0.00018892,2]
[363849068,1748898646499,-440.0,0.00018892,2]
[363849070,1748898646510,-1168.92,0.00018892,2]
[363849072,1748898646519,-440.0,0.00018892,2]
[363849074,1748898646530,-440.0,0.00018892,2]
[363849076,1748898646539,-440.0,0.00018892,2]
[363849078,1748898646548,-1243.84,0.00018892,2]
[363849080,1748898646558,-440.0,0.00018892,2]
[363849082,1748898646568,-2429.72,0.00018892,2]
[363849084,1748898646578,-2446.38,0.00018892,2]
[363849086,1748898646588,-2932.61,0.00018892,2]
[363849088,1748898646599,-440.0,0.00018892,2]
[363849090,1748898646611,-759.05,0.00018892,2]
[363849092,1748898646620,-2075.53,0.00018892,2]
[363849094,1748898646630,-440.0,0.00018892,2]
[363849097,1748898646641,-440.0,0.00018892,2]
[363849098,1748898646651,-440.0,0.00018892,2]
[363849101,1748898646661,-440.0,0.00018892,2]
[363849103,1748898646670,-440.0,0.00018892,2]
[363849105,1748898646680,-1209.51,0.00018892,2]
[363849107,1748898646690,-440.0,0.00018892,2]
[363849108,1748898646699,-440.0,0.00018892,2]
[363849111,1748898646709,-822.63,0.00018893,2]
[363849113,1748898646719,-440.0,0.00018893,2]
[363849115,1748898646730,-440.0,0.00018893,2]
[363849117,1748898646739,-440.0,0.00018893,2]
[363849119,1748898646749,-440.0,0.00018893,2]
[363849121,1748898646759,-151.0,0.00018893,2]
[363849123,1748898646769,-440.0,0.00018893,2]
[363849125,1748898646779,-440.0,0.00018893,2]
[363849127,1748898646789,-1447.71,0.00018893,2]
[363849129,1748898646798,-3248.01,0.00018893,2]
[363849131,1748898646808,-769.84,0.00018893,2]
[363849133,1748898646817,-709.82,0.00018893,2]
[363849135,1748898646827,-571.83,0.00018893,2]
[363849137,1748898646836,-3691.36,0.00018893,2]
[363849139,1748898646846,-616.2,0.00018893,2]
[363849141,1748898646855,-1320.38,0.00018893,2]
[363849143,1748898646864,-1361.05,0.00018893,2]
[363849145,1748898646873,-440.0,0.00018893,2]
[363849147,1748898646883,-440.0,0.00018893,2]
[363849148,1748898646893,-1388.18,0.00018893,2]
[363849149,1748898646902,-555.22,0.00018893,2]
[363849150,1748898646911,-587.08,0.00018893,2]
[363849151,1748898646920,-440.0,0.00018894,2]
[363849152,1748898646929,-440.0,0.00018894,2]
[363849153,1748898646939,-1252.77991557,0.000189,2]
[363849155,1748898646948,-5067.85,0.00018911,2]
[363849156,1748898646958,-2735.43196046,0.00018972,2]
[363849157,1748898646967,-711.87223538,0.00019072,2]
[363849158,1748898646976,-440.0,0.00019165,2]
[363849159,1748898646985,-440.0,0.00019165,2]
[363849160,1748898646995,-1252.42,0.00019165,2]
[363849162,1748898647004,-440.0,0.00019165,2]
[363849164,1748898647015,-1041.47,0.00019166,2]
[363849166,1748898647025,-440.0,0.00019166,2]
[363849168,1748898647035,-1168.92,0.00019166,2]
[363849170,1748898647045,-440.0,0.00019166,2]
[363849172,1748898647054,-440.0,0.00019166,2]
[363849174,1748898647064,-440.0,0.00019166,2]
[363849176,1748898647073,-1243.84,0.00019166,2]
[363849178,1748898647082,-440.0,0.00019166,2]
[363849180,1748898647093,-2429.72,0.00019166,2]
[363849182,1748898647103,-2446.38,0.00019166,2]
[363849184,1748898647112,-2932.61,0.00019166,2]
[363849186,1748898647122,-440.0,0.00019166,2]
[363849188,1748898647131,-759.05,0.00019166,2]
[363849190,1748898647141,-2075.53,0.00019166,2]
[363849192,1748898647151,-440.0,0.00019166,2]
[363849194,1748898647162,-440.0,0.00019166,2]
[363849196,1748898647172,-440.0,0.00019166,2]
[363849198,1748898647181,-440.0,0.00019166,2]
[363849200,1748898647191,-440.0,0.00019166,2]
[363849202,1748898647200,-1209.51,0.00019166,2]
[363849204,1748898647209,-440.0,0.00019166,2]
[363849206,1748898647218,-440.0,0.00019166,2]
[363849208,1748898647227,-501.32510502,0.00019167,2]
[363849210,1748898647238,-822.63,0.00019167,2]
[363849212,1748898647247,-440.0,0.00019167,2]
[363849214,1748898647256,-151.0,0.00019167,2]
[363849216,1748898647266,-151.0,0.00019167,2]
[363849218,1748898647275,-440.0,0.00019167,2]
[363849220,1748898647285,-151.0,0.00019167,2]
[363849222,1748898647294,-440.0,0.00019167,2]
[363849224,1748898647303,-151.0,0.00019167,2]
[363849226,1748898647313,-151.0,0.00019167,2]
[363849228,1748898647322,-410.536259,0.00019167,2]
[363849230,1748898647331,-410.536259,0.00019167,2]
[363849232,1748898647341,-440.0,0.00019167,2]
[363849234,1748898647351,-151.0,0.00019167,2]
[363849236,1748898647360,-481.431687,0.00019167,2]
[363849238,1748898647370,-481.431687,0.00019167,2]
[363849240,1748898647380,-673.475798,0.00019167,2]
[363849242,1748898647389,-673.475798,0.00019167,2]
[363849244,1748898647399,-440.0,0.00019167,2]
[363849246,1748898647408,-440.0,0.00019167,2]
[363849248,1748898647417,-1447.71,0.00019167,2]
[363849250,1748898647427,-3248.01,0.00019167,2]
[363849252,1748898647436,-769.84,0.00019167,2]
[363849254,1748898647445,-709.82,0.00019167,2]
[363849256,1748898647455,-571.83,0.00019167,2]
[363849258,1748898647464,-3691.36,0.00019167,2]
[363849260,1748898647474,-616.2,0.00019167,2]
[363849263,1748898647484,-1320.38,0.00019167,2]
[363849264,1748898647494,-151.0,0.00019167,2]
[363849266,1748898647504,-151.0,0.00019167,2]
[363849268,1748898647513,-151.0,0.00019167,2]
[363849270,1748898647522,-1361.05,0.00019167,2]
[363849272,1748898647532,-440.0,0.00019167,2]
[363849274,1748898647541,-151.0,0.00019167,2]
[363849276,1748898647552,-151.0,0.00019167,2]
[363849278,1748898647561,-440.0,0.00019167,2]
[363849280,1748898647571,-1388.18,0.00019167,2]
[363849282,1748898647580,-587.08,0.00019167,2]
[363849285,1748898647590,-1054.348671,0.00019167,2]
[363849286,1748898647602,-1054.348671,0.00019167,2]
[363849288,1748898647611,-440.0,0.00019168,2]
[363849290,1748898647621,-440.0,0.00019168,2]
[363849293,1748898647631,-500.0,0.00019178,2]
[363849294,1748898647640,-500.0,0.00019178,2]
[363849296,1748898647650,-500.0,0.00019178,2]
[363849299,1748898647660,-525.0,0.00019178,2]
[363849301,1748898647670,-440.0,0.00019178,2]
[363849303,1748898647682,-440.0,0.00019178,2]
[363849305,1748898647692,-440.0,0.00019178,2]
[363849307,1748898647702,-440.0,0.00019178,2]
[363849309,1748898647711,-440.0,0.00019178,2]
[363849311,1748898647720,-440.0,0.00019178,2]
[363849313,1748898647730,-440.0,0.00019178,2]
[363849315,1748898647740,-440.0,0.00019178,2]
[363849317,1748898647749,-440.0,0.00019178,2]
[363849319,1748898647758,-440.0,0.00019178,2]
[363849321,1748898647768,-500.0,0.00019178,2]
[363849323,1748898647777,-204.401088,0.00019178,2]
[363849325,1748898647787,-204.401088,0.00019178,2]
[363849327,1748898647796,-500.0,0.00019178,2]
[363849329,1748898647805,-500.0,0.00019178,2]
[363849331,1748898647815,-340.85357338,0.00019178,2]
[363849333,1748898647824,-500.0,0.00019178,2]
[363849335,1748898647833,-500.0,0.00019178,2]
[363849337,1748898647843,-151.0,0.00019178,2]
[363849339,1748898647853,-151.0,0.000192,2]
[363849341,1748898647862,-500.0,0.00019205,2]
[363849343,1748898647872,-513.09759272,0.00019233,2]
[363849345,1748898647881,-156.587,0.00019233,2]
[363849347,1748898647891,-162.380719,0.00019288,2]
[363849349,1748898647900,-151.0,0.000193,2]
[363849351,1748898647909,-711.87223538,0.00019314,2]
[363849353,1748898647919,-14454.12192142,0.00019329,2]
[363849355,1748898647929,-168.3888056,0.00019343,2]
[363849357,1748898647938,-174.61919141,0.00019398,2]
[363849359,1748898647947,-330.0,0.00019439,2]
[363849361,1748898647957,-330.0,0.00019439,2]
[363849363,1748898647966,-1252.42,0.00019439,2]
[363849365,1748898647975,-216.22,0.00019439,2]
[363849367,1748898647989,-151.0,0.0001944,2]
[363849369,1748898647999,-1041.47,0.0001944,2]
[363849371,1748898648008,-260.0,0.0001944,2]
[363849373,1748898648017,-1168.92,0.0001944,2]
[363849375,1748898648027,-151.0,0.0001944,2]
[363849377,1748898648036,-440.0,0.0001944,2]
[363849379,1748898648047,-440.0,0.0001944,2]
[363849381,1748898648057,-152.528378,0.0001944,2]
[363849383,1748898648067,-330.0,0.0001944,2]
[363849385,1748898648078,-152.528378,0.0001944,2]
[363849387,1748898648088,-1243.84,0.0001944,2]
[363849389,1748898648098,-440.0,0.0001944,2]
[363849391,1748898648108,-2429.72,0.0001944,2]
[363849393,1748898648118,-2446.38,0.0001944,2]
[363849395,1748898648127,-2932.61,0.0001944,2]
[363849397,1748898648138,-440.0,0.0001944,2]
[363849399,1748898648147,-759.05,0.0001944,2]
[363849401,1748898648157,-2075.53,0.0001944,2]
[363849403,1748898648168,-274.223042,0.0001944,2]
[363849406,1748898648178,-440.0,0.0001944,2]
[363849407,1748898648187,-274.223042,0.0001944,2]
[363849410,1748898648197,-440.0,0.0001944,2]
[363849412,1748898648207,-485.85,0.0001944,2]
[363849414,1748898648216,-440.0,0.0001944,2]
[363849416,1748898648226,-330.0,0.0001944,2]
[363849417,1748898648238,-1209.51,0.0001944,2]
[363849420,1748898648247,-440.0,0.0001944,2]
[363849421,1748898648257,-440.0,0.0001944,2]
[363849423,1748898648267,-157.752796,0.0001944,2]
[363849425,1748898648276,-151.0,0.00019441,2]
[363849427,1748898648286,-151.0,0.00019441,2]
[363849429,1748898648295,-822.63,0.00019441,2]
[363849431,1748898648305,-440.0,0.00019441,2]
[363849450,1748898648473,-151.0,0.00019441,2]
[363849452,1748898648488,-440.0,0.00019441,2]
[363849454,1748898648497,-440.0,0.00019441,2]
[363849456,1748898648507,-1326.837435,0.00019441,2]
[363849458,1748898648516,-440.0,0.00019441,2]
[363849460,1748898648527,-1326.837435,0.00019441,2]
[363849462,1748898648536,-440.0,0.00019441,2]
[363849464,1748898648546,-396.594112,0.00019441,2]
[363849466,1748898648555,-396.594112,0.00019441,2]
[363849468,1748898648564,-440.0,0.00019441,2]
[363849470,1748898648574,-440.0,0.00019441,2]
[363849472,1748898648583,-1447.71,0.00019441,2]
[363849473,1748898648593,-3248.01,0.00019441,2]
[363849474,1748898648606,-769.84,0.00019441,2]
[363849475,1748898648615,-709.82,0.00019441,2]
[363849476,1748898648625,-571.83,0.00019441,2]
[363849477,1748898648634,-3691.36,0.00019441,2]
[363849478,1748898648645,-616.2,0.00019441,2]
[363849479,1748898648654,-1320.38,0.00019441,2]
[363849480,1748898648664,-1361.05,0.00019441,2]
[363849481,1748898648674,-440.0,0.00019441,2]
[363849482,1748898648686,-330.0,0.00019441,2]
[363849483,1748898648696,-1388.18,0.00019441,2]
[363849484,1748898648706,-587.08,0.00019441,2]